Cogmind - Beta 9.4 @@@ ROGUE MODE // 2020.01.24 @ 12:46:53 Player: spruce (@macklemurr) Result: Destroyed by L-41 Fighter with Axe Performance ------------- Evolutions (3) 1500 Regions Visited (13) 2600 Robots Destroyed (147) 735 Value Destroyed (4927) 4927 Prototype IDs (28) 560 Alien Tech Used (0) 0 Bonus (3113) 3113 TOTAL SCORE: 13435 Bonus ------- High Alert Combat Kills 569 Follower Combat Kills 881 Entered Garrisons 400 Used RIF Installer 1000 Aligned with FarCom 300 Friendly Fire -37 Cogmind --------- Core Integrity 0/700 Matter 285/300 Energy 100/100 System Corruption 6% Temperature Cool (0) Movement Core (550) Ox10 Location -7/Garrison Parts ------- > --- POWER (1) -------- (None) > --- PROPULSION (2) --- (None) > --- UTILITY (8) ------ High-capacity Storage Unit Advanced Signal Interpreter Advanced Terrain Scan Processor Advanced Targeting Computer Relay Coupler [Swarmer] (3) Relay Coupler [Specialist] (18) Relay Coupler [Hunter] (15) > --- WEAPON (2) ------- (None) > --- INVENTORY (12) --- Light Nuclear Core Light Nuclear Core Light Nuclear Core Improved Deuterium Engine Relay Coupler [NC] (26) Relay Coupler [ARC] (9) Relay Coupler [Demolisher] (26) Relay Coupler [Behemoth] (13) Beamcaster Heavy Battle Rifle Remote Datajack Peak State ------------ > --- POWER ------------ Light Deuterium Engine > --- PROPULSION ------- Heavy Treads > --- UTILITY ---------- High-capacity Storage Unit Advanced Signal Interpreter Advanced Terrain Scanner Advanced Terrain Scan Processor Advanced Targeting Computer Hardened Medium Armor Plating Hardened Medium Armor Plating Improved Shield Generator > --- WEAPON ----------- Beamcaster Enhanced Autogun > --- INVENTORY -------- Improved Cooling System Transmission Jammer Relay Coupler [Swarmer] Relay Coupler [Grunt] Relay Coupler [Specialist] Relay Coupler [Behemoth] Gatling Laser Gatling Laser Beamcaster Heavy Battle Rifle Bore Cannon Remote Datajack [Rating: 53] Favorites ----------- Power Light Nuclear Core Engine Heavy Ion Engine Power Core Light Nuclear Core Propulsion Carbon-fiber Leg Treads Light Treads Leg Carbon-fiber Leg Hover Unit Combat Airjet Utility High-capacity Storage Unit Device Heat Sink Storage High-capacity Storage Unit Processor Improved Targeting Computer Hackware Relay Coupler [Swarmer] Protection Hardened Medium Armor Plating Weapon Shock Rifle Energy Gun Shock Rifle Energy Cannon EM Pulse Cannon Ballistic Gun Enhanced Autogun Ballistic Cannon Bore Cannon Launcher Rocket Launcher Special Weapon Remote Datajack Build | -11 -10 -10 -9 -9 -9 -8 -8 -8 -8 -7 -7 -7 -7 ------- Run | Scr Mat Min Mat Min Exi Min Mat Gar Mat Fac Was Fac Gar Slots Evolved 6 | . . . 2 . . . 2 . . 2 . . . Power . | . . . . . . . . . . . . . . Propulsion . | . . . . . . . . . . . . . . Utility 6 | . . . 2 . . . 2 . . 2 . . . Weapon . | . . . . . . . . . . . . . . Parts Attached 154 | 7 6 9 12 9 1 6 23 8 28 8 6 7 24 Power 15 | 1 2 1 1 1 . 1 2 1 1 . . 1 3 Engine 7 | 1 2 . 1 . . 1 . . 1 . . 1 . Core 8 | . . 1 . 1 . . 2 1 . . . . 3 Reactor . | . . . . . . . . . . . . . . Propulsion 28 | 2 1 3 3 2 . . 4 3 5 1 1 . 3 Treads 8 | . . 1 1 . . . . . 4 1 1 . . Leg 16 | 2 1 2 2 . . . 4 3 1 . . . 1 Wheel . | . . . . . . . . . . . . . . Hover 4 | . . . . 2 . . . . . . . . 2 Flight . | . . . . . . . . . . . . . . Utility 51 | 2 . 1 4 2 1 1 4 2 9 6 1 5 13 Device 20 | 1 . . 2 . . 1 1 1 6 2 . 2 4 Storage 6 | 1 . . 1 . 1 . . . . 2 . . 1 Processor 9 | . . 1 1 . . . 3 . 1 2 . 1 . Hackware 6 | . . . . . . . . . . . . . 6 Protection 10 | . . . . 2 . . . 1 2 . 1 2 2 Artifact . | . . . . . . . . . . . . . . Weapon 60 | 2 3 4 4 4 . 4 13 2 13 1 4 1 5 Energy Gun 34 | 1 3 3 . 3 . 2 9 1 6 1 2 . 3 Energy Cannon 4 | . . . . . . . 3 1 . . . . . Ballistic Gun 11 | 1 . 1 4 . . . . . 4 . . 1 . Ballistic Cannon 3 | . . . . . . . 1 . . . 1 . 1 Launcher 7 | . . . . 1 . 2 . . 3 . 1 . . Special Weapon 1 | . . . . . . . . . . . . . 1 Impact Weapon . | . . . . . . . . . . . . . . Slashing Weapon . | . . . . . . . . . . . . . . Piercing Weapon . | . . . . . . . . . . . . . . Special Melee Weapon . | . . . . . . . . . . . . . . Unidentified Prototypes 6 | . . . 1 . . . 2 . 2 . . 1 . Parts Lost 57 | . 10 4 2 1 . 4 7 4 8 . . 4 13 Power 8 | . 2 1 1 . . 1 . 1 . . . . 2 Propulsion 11 | . 2 1 . . . . 2 1 2 . . . 3 Utility 17 | . 1 . . . . 1 1 . 4 . . 3 7 Weapon 21 | . 5 2 1 1 . 2 4 2 2 . . 1 1 Highest Loss Streak 7 | . 4 2 1 1 . 4 2 2 3 . . 4 7 Average Slot Usage (%) 94 | . 79 77 92 99 100 96 99 96 98 99 93 91 94 Engine 3 | . 10 1 2 2 . 8 . . 8 7 7 7 1 Core 4 | . . 3 3 8 11 1 8 6 . . . . 5 Treads 4 | . . 7 3 . . . . . 12 15 8 7 1 Leg 7 | . 25 15 18 4 . . 16 17 4 . . . . Hover 5 | . . . . 17 22 22 1 . . . . . 10 Device 9 | . 5 . 9 11 11 9 11 8 8 14 15 14 5 Storage 13 | . 14 14 11 11 17 22 18 18 11 14 15 9 7 Processor 20 | . . 12 21 13 11 11 24 27 28 30 25 22 23 Hackware 1 | . . . . . . . . . . . . . 11 Protection 4 | . . . . 8 4 . . . 4 . 4 12 10 Energy Gun 10 | . 15 23 2 9 22 14 14 8 11 7 4 7 3 Energy Cannon 1 | . . . . . . . 3 8 1 . . . . Ballistic Gun 5 | . 7 . 19 10 . . . . 3 7 2 4 6 Naked Turns . | . . . . . . . . . . . . . . Heaviest Build 66 | 13 13 15 44 47 48 49 54 51 59 56 66 66 66 Greatest Support 70 | 20 20 20 30 44 44 44 44 30 42 50 70 70 70 Greatest Overweight (x) 15 | 1 . 2 1 2 1 1 3 3 14 2 1 . 15 Average Overweight (x) . | . . . . . 1 . 1 1 1 1 . . 1 Largest Inventory Capacity 12 | 6 6 6 12 12 12 12 12 12 12 12 12 12 12 Average Capacity 10 | 5 6 6 7 12 12 12 12 12 12 12 12 12 12 Most Carried 12 | . . 2 12 12 12 12 12 12 12 12 12 12 12 Average Carried 9 | . . . 5 11 11 10 10 11 11 11 11 11 11 Final Capacity 12 | 6 6 6 12 12 12 12 12 12 12 12 12 12 12 Final Carried 12 | . . 2 12 12 12 10 11 12 12 12 12 12 11 Class Distribution -------------------- 37% | Mutant 23% | Scavenger-Mutant 22% | Skirmisher 10% | Bothacker-Mutant 6% | Scavenger-Skirmisher Dominant Class ---------------- Mutant | -10/Materials Mutant | -10/Mines Mutant | -9/Materials Scavenger-Mutant | -9/Mines Scavenger-Mutant | -9/Exiles Scavenger-Mutant | -8/Mines Mutant | -8/Materials Skirmisher | -8/Garrison Skirmisher | -8/Materials Skirmisher | -7/Factory Mutant | -7/Waste Mutant | -7/Factory Bothacker-Mutant | -7/Garrison Resources | -11 -10 -10 -9 -9 -9 -8 -8 -8 -8 -7 -7 -7 -7 ----------- Run | Scr Mat Min Mat Min Exi Min Mat Gar Mat Fac Was Fac Gar Matter Collected 2685 | 227 114 75 327 232 . 104 249 86 468 45 234 108 416 Remotely . | . . . . . . . . . . . . . . Salvage Created 5945 | 16 275 267 622 483 . 198 1285 574 999 45 493 143 545 Parts 307 | 2 17 18 42 28 . 11 56 36 59 4 2 10 22 Haulers Intercepted 8 | . . . 3 . . . 2 . 2 . . 1 . Recyclers Shooed 1 | . . . . . . . . . 1 . . . . Parts Field Recycled . | . . . . . . . . . . . . . . Retrieved Matter . | . . . . . . . . . . . . . . Parts Self-Destructed . | . . . . . . . . . . . . . . Prevented . | . . . . . . . . . . . . . . Kills | -11 -10 -10 -9 -9 -9 -8 -8 -8 -8 -7 -7 -7 -7 ------- Run | Scr Mat Min Mat Min Exi Min Mat Gar Mat Fac Was Fac Gar Combat Hostiles Destroyed 112 | . 8 6 12 14 . 5 19 11 21 1 2 1 12 Guns 74 | . 8 6 12 14 . . 8 2 12 1 . 1 10 Cannons 12 | . . . . . . . 5 5 1 . . . 1 AOE 22 | . . . . . . 5 4 3 7 . 2 . 1 Classes Destroyed 17 | 1 4 1 3 3 . . 1 . 1 1 1 . 1 Worker 6 | . 1 . . . . 1 2 . 2 . . . . Builder 2 | . 1 . . . . . 1 . . . . . . Tunneler 3 | 1 . 1 . . . . . . . . . 1 . Hauler 8 | . . . 3 . . . 2 . 2 . . 1 . Recycler 9 | . . 1 2 1 . 2 2 . 1 . . . . Operator 1 | . . . . . . . . . 1 . . . . Watcher 6 | . . . 1 . . . 3 . 2 . . . . Swarmer 32 | . 3 3 6 6 . 4 3 . 7 . . . . Grunt 50 | . 5 3 3 5 . 1 9 7 6 . . . 11 Brawler 1 | . . . . . . . . . . . . . 1 Duelist 2 | . . . . 1 . . 1 . . . . . . Sentry 18 | . . . 3 . . . 5 2 7 . . 1 . Demolisher 1 | . . . . 1 . . . . . . . . . Hunter 4 | . . . . . . . 1 2 1 . . . . Programmer 1 | . . . . . . . . . . 1 . . . Compactor 2 | . . . . . . . . . . . 2 . . Assembled 1 | . . . . 1 . . . . . . . . . Best Kill Streak 7 | 1 6 3 6 4 . 7 6 2 7 1 2 2 3 Combat Bots Only 6 | . 6 3 3 4 . 4 4 2 4 1 2 1 3 Max Kills in Single Turn 5 | 1 2 2 2 2 . 5 2 2 3 1 1 2 2 Gunslinging 1 | . . . 1 1 . . . . . . . . 1 Exploded 3 | . . . . . . 3 2 2 2 . 1 . 1 Melee . | . . . . . . . . . . . . . . Uniques/NPCs Destroyed . | . . . . . . . . . . . . . . Combat | -11 -10 -10 -9 -9 -9 -8 -8 -8 -8 -7 -7 -7 -7 -------- Run | Scr Mat Min Mat Min Exi Min Mat Gar Mat Fac Was Fac Gar Damage Taken 8259 | . 755 337 484 551 . 430 1116 594 1161 11 10 332 2478 Core 1679 | . 120 101 103 74 . 53 120 143 231 . . 93 641 Absorbed by Shields 203 | . . . . . . . . . 51 4 4 94 50 Core Remaining (%) 40 | 100 . 11 . . . 42 . . 10 . . . . Volleys Fired 401 | 10 46 25 47 42 . 10 51 31 66 3 15 8 47 Largest 2 | 2 2 2 2 2 . 2 2 2 2 2 1 2 2 Hottest 138 | 60 80 130 85 73 . 100 126 126 138 78 75 100 105 Shots Fired 647 | 20 70 30 77 69 . 14 95 55 109 6 15 15 72 Gun 556 | 20 70 30 77 69 . 10 75 26 96 6 4 15 58 Cannon 53 | . . . . . . . 20 29 1 . . . 3 Launcher 27 | . . . . . . 4 . . 12 . 11 . . Special 11 | . . . . . . . . . . . . . 11 Kinetic 228 | 10 31 . 69 46 . . 4 . 16 3 2 9 38 Thermal 174 | . 24 30 8 . . . 5 16 57 3 2 6 23 Explosive 27 | . . . . . . 4 . . 12 . 11 . . Electromagnetic 207 | 10 15 . . 23 . 10 86 39 24 . . . . Robot Hit Streak 29 | 8 11 5 29 18 . 14 16 17 16 10 13 7 11 Robot Miss Streak 5 | 1 4 3 3 2 . 1 3 2 5 1 1 3 2 Penetration Max 1 | . . . . . . . 1 . . . . . . Secondary Targets 13 | . 2 . 1 4 . . 2 . . . . . 4 Max Gunslinging Chain 1 | . 1 . 1 1 . . 1 . . . . . 1 Shots Hit Robots 474 | 13 45 19 57 49 . 11 80 42 79 4 14 10 51 Core Hits 251 | 1 17 13 30 23 . 14 47 20 51 2 4 4 25 Critical Hits 10 | . 2 . . . . . 5 1 . . . . 2 Critical Kills 5 | . 2 . . . . . 2 1 . . . . . Critical Parts Destroyed 5 | . . . . . . . 3 . . . . . 2 Melee Attacks . | . . . . . . . . . . . . . . Impact . | . . . . . . . . . . . . . . Slashing . | . . . . . . . . . . . . . . Piercing . | . . . . . . . . . . . . . . Sneak Attacks . | . . . . . . . . . . . . . . Combat Hostiles . | . . . . . . . . . . . . . . Follow-up Attacks . | . . . . . . . . . . . . . . Damage Inflicted 10395 | 122 434 272 780 713 . 597 1955 966 2236 93 1059 211 957 Guns 6488 | 122 434 271 780 713 . 85 1073 337 1408 93 71 211 890 Cannons 994 | . . . . . . . 438 464 25 . . . 67 Explosions 2908 | . . . . . . 512 444 165 799 . 988 . . Melee . | . . . . . . . . . . . . . . Ramming 5 | . . 1 . . . . . . 4 . . . . Kinetic 2323 | 32 164 . 685 471 . . 107 . 171 20 28 124 521 Thermal 2902 | . 185 271 95 . . . 498 356 858 73 43 87 436 Explosive 2299 | . . . . . . 512 . . 799 . 988 . . Electromagnetic 2866 | 90 85 . . 242 . 85 1350 610 404 . . . . Impact . | . . . . . . . . . . . . . . Slashing . | . . . . . . . . . . . . . . Piercing . | . . . . . . . . . . . . . . Highest Corruption 6 | . . . . . . . 5 5 5 . . 6 6 Average Corruption 5 | . . . . . . . 4 5 5 . . 6 6 Corruption Purged . | . . . . . . . . . . . . . . Effects 128 | . . . . . . . 13 23 39 . . 19 34 Message Errors 30 | . . . . . . . 4 7 8 . . 4 7 Matter Fused 22 | . . . . . . . 2 4 5 . . 2 9 Heat Flow Errors 13 | . . . . . . . 2 2 4 . . 2 3 Energy Discharges 15 | . . . . . . . 1 . 9 . . 3 2 Data Loss (minor) 18 | . . . . . . . 2 5 5 . . 2 4 Data Loss (major) 6 | . . . . . . . 1 . 1 . . 1 3 Misfires 5 | . . . . . . . . 2 2 . . 1 . Targeting Errors 13 | . . . . . . . . 2 5 . . 2 4 Weapon Failures 6 | . . . . . . . 1 1 . . . 2 2 Overload Shots . | . . . . . . . . . . . . . . Overflow Damage 87 | . . . . . . 9 4 14 60 . . . . Projectiles 14 | . . . . . . . . 14 . . . . . Explosions 73 | . . . . . . 9 4 . 60 . . . . Melee . | . . . . . . . . . . . . . . Knockbacks 1 | . . . . . . . . . . . . . 1 Impact . | . . . . . . . . . . . . . . Kinetic 1 | . . . . . . . . . . . . . 1 Secondary . | . . . . . . . . . . . . . . Self-Inflicted Damage 377 | . . . . . . 22 204 . 151 . . . . Shots 12 | . . . . . . 1 5 . 6 . . . . Rammed 4 | . . 2 . . . . . . 2 . . . . Targets Rammed 4 | . . 2 . . . . . . 2 . . . . Kicked . | . . . . . . . . . . . . . . Crushed . | . . . . . . . . . . . . . . Highest Temperature 412 | 40 107 222 246 8 . 79 393 202 408 . 28 132 412 Average Temperature 85 | 22 45 90 130 3 . 39 68 25 93 . 16 61 136 Received Heat Transfer 2518 | . 282 129 75 81 . 198 324 252 369 . . 22 786 Effects 10 | . . 1 . . . . . . 8 . . . 1 Shutdowns 3 | . . . . . . . . . 2 . . . 1 Energy Bleed 3 | . . 1 . . . . . . 2 . . . . Interference 3 | . . . . . . . . . 3 . . . . Damage (minor) 1 | . . . . . . . . . 1 . . . . Siege Activations . | . . . . . . . . . . . . . . Robots Corrupted 4 | . . . . . . . 2 1 1 . . . . Combat Hostiles 4 | . . . . . . . 2 1 1 . . . . Parts Fried 13 | . . . . . . . 9 2 2 . . . . Impact Corruptions . | . . . . . . . . . . . . . . Robots Melted . | . . . . . . . . . . . . . . Combat Hostiles . | . . . . . . . . . . . . . . Parts Melted 2 | . . . . . . . . . 2 . . . . Heat Transferred 5317 | . 425 656 222 . . . 611 557 1591 111 74 148 922 Parts Sabotaged . | . . . . . . . . . . . . . . Parts Stolen . | . . . . . . . . . . . . . . Parts Stripped . | . . . . . . . . . . . . . . Power Chain Reactions 9 | . . . . . . . 7 2 . . . . . Missiles Intercepted . | . . . . . . . . . . . . . . Alert | -11 -10 -10 -9 -9 -9 -8 -8 -8 -8 -7 -7 -7 -7 ------- Run | Scr Mat Min Mat Min Exi Min Mat Gar Mat Fac Was Fac Gar Peak Influence 863 | 5 183 102 306 305 . 181 382 751 753 311 121 783 863 Average Influence 331 | 1 132 52 182 147 . 81 224 532 497 268 98 375 728 Maximum Alert Level 3 | . . . 1 1 . . 1 3 3 1 . 3 3 Low Security (%) 40 | 100 100 100 55 79 . 100 45 . . 30 100 18 . Level 1 24 | . . . 44 20 . . 54 20 28 69 . 31 . Level 2 24 | . . . . . . . . 63 69 . . 45 29 Level 3 10 | . . . . . . . . 16 1 . . 3 70 Level 4 . | . . . . . . . . . . . . . . Level 5 . | . . . . . . . . . . . . . . High Security . | . . . . . . . . . . . . . . Max Security . | . . . . . . . . . . . . . . Squads Dispatched 15 | . 4 . . . . . 2 . 4 1 . 4 . Investigation 4 | . 2 . . . . . . . 2 . . . . Extermination 1 | . . . . . . . . . . 1 . . . Reinforcement 7 | . 2 . . . . . 2 . . . . 3 . Assault 2 | . . . . . . . . . 2 . . . . Garrison 1 | . . . . . . . . . . . . 1 . Intercept . | . . . . . . . . . . . . . . Construction Impeded 2 | . . . . . . . 1 . . . . 1 . Haulers Reinforced . | . . . . . . . . . . . . . . Stealth | -11 -10 -10 -9 -9 -9 -8 -8 -8 -8 -7 -7 -7 -7 --------- Run | Scr Mat Min Mat Min Exi Min Mat Gar Mat Fac Was Fac Gar Distress Signals 6 | . . . 1 . . . 2 . 2 . . 1 . Communications Jammed . | . . . . . . . . . . . . . . Distress Signals . | . . . . . . . . . . . . . . Times Spotted 202 | . 18 8 19 18 . 7 37 10 33 2 6 14 30 Peak Tracking Total 8 | . 5 3 4 4 . 4 6 2 5 1 3 4 8 Tactical Retreats 10 | . 2 2 . . . 1 5 . . . . . . Traps | -11 -10 -10 -9 -9 -9 -8 -8 -8 -8 -7 -7 -7 -7 ------- Run | Scr Mat Min Mat Min Exi Min Mat Gar Mat Fac Was Fac Gar Traps Triggered 19 | . 1 . . . . . 4 4 3 1 . 2 4 Indirectly . | . . . . . . . . . . . . . . Trap Hack Attempts . | . . . . . . . . . . . . . . Triggered . | . . . . . . . . . . . . . . Disarmed . | . . . . . . . . . . . . . . Reprogrammed . | . . . . . . . . . . . . . . Reused . | . . . . . . . . . . . . . . Traps Extracted . | . . . . . . . . . . . . . . Installed . | . . . . . . . . . . . . . . Triggered 1 | . . . . . . . 1 . . . . . . Machines | -11 -10 -10 -9 -9 -9 -8 -8 -8 -8 -7 -7 -7 -7 ---------- Run | Scr Mat Min Mat Min Exi Min Mat Gar Mat Fac Was Fac Gar Machines Disabled 18 | . . 1 1 . . . 4 1 3 . . 6 2 Max in Single Turn 1 | . . 1 1 . . . 1 1 1 . . . 1 Garrison Relay 3 | . . . . . . . . 1 . . . . 2 Machines Sabotaged . | . . . . . . . . . . . . . . Garrisons Compromised . | . . . . . . . . . . . . . . Overloaded Fab Kills . | . . . . . . . . . . . . . . Fab Network Shutdowns . | . . . . . . . . . . . . . . Hacking | -11 -10 -10 -9 -9 -9 -8 -8 -8 -8 -7 -7 -7 -7 --------- Run | Scr Mat Min Mat Min Exi Min Mat Gar Mat Fac Was Fac Gar Machines Accessed 14 | . 2 . 4 . 1 . 1 . 4 1 . 1 . Terminals 10 | . 1 . 4 . . . . . 4 1 . . . Fabricators . | . . . . . . . . . . . . . . Repair Stations . | . . . . . . . . . . . . . . Recycling Units 1 | . 1 . . . . . . . . . . . . Scanalyzers . | . . . . . . . . . . . . . . Garrison Access 2 | . . . . . . . 1 . . . . 1 . Total Hacks 26 | . 5 . 9 . 1 . 3 . 4 2 . 2 . Successful 13 | . 2 . 5 . 1 . 1 . 1 1 . 2 . Failed 13 | . 3 . 4 . . . 2 . 3 1 . . . Catastrophic 4 | . 2 . 1 . . . . . 1 . . . . Database Lockouts . | . . . . . . . . . . . . . . Manual 8 | . 1 . 1 . 1 . . . 4 1 . . . Terminals 19 | . 4 . 9 . . . . . 4 2 . . . Fabricators . | . . . . . . . . . . . . . . Repair Stations . | . . . . . . . . . . . . . . Recycling Units 1 | . 1 . . . . . . . . . . . . Scanalyzers . | . . . . . . . . . . . . . . Garrison Access 5 | . . . . . . . 3 . . . . 2 . Terminal Hacks 8 | . 1 . 5 . 1 . . . . 1 . . . Branch Access Points 1 | . 1 . . . . . . . . . . . . Alert Level 1 | . . . 1 . . . . . . . . . . Unreport Threat 2 | . . . 1 . . . . . . 1 . . . Registered Components 1 | . . . 1 . . . . . . . . . . Zone Layout 2 | . . . 2 . . . . . . . . . . EX-Prototype ID Bank 1 | . . . . . 1 . . . . . . . . Fabricator Hacks . | . . . . . . . . . . . . . . Repair Station Hacks . | . . . . . . . . . . . . . . Recycling Unit Hacks . | . . . . . . . . . . . . . . Scanalyzer . | . . . . . . . . . . . . . . Garrison Access Hacks 3 | . . . . . . . 1 . . . . 2 . Unlock Access 2 | . . . . . . . 1 . . . . 1 . Coupler Status 1 | . . . . . . . . . . . . 1 . Unauthorized Hacks 5 | . 2 . . . . . . . 3 . . . . Terminals 1 | . . . . . . . . . 1 . . . . Botnet 1 | . . . . . . . . . 1 . . . . Fabricators . | . . . . . . . . . . . . . . Repair Stations . | . . . . . . . . . . . . . . Recycling Units 1 | . 1 . . . . . . . . . . . . Tunnel 1 | . 1 . . . . . . . . . . . . Scanalyzers . | . . . . . . . . . . . . . . Garrison Access . | . . . . . . . . . . . . . . Data Cores Recovered . | . . . . . . . . . . . . . . Used . | . . . . . . . . . . . . . . Hacking Detections 9 | . 1 . 3 . . . 1 . 3 1 . . . Full Trace Events 1 | . 1 . . . . . . . . . . . . Feedback Events . | . . . . . . . . . . . . . . Feedback Blocked . | . . . . . . . . . . . . . . Robot Schematics Acquired . | . . . . . . . . . . . . . . Robots Built . | . . . . . . . . . . . . . . Matter . | . . . . . . . . . . . . . . Time . | . . . . . . . . . . . . . . Total Robot Build Rating . | . . . . . . . . . . . . . . Part Schematics Acquired . | . . . . . . . . . . . . . . Parts Built . | . . . . . . . . . . . . . . Matter . | . . . . . . . . . . . . . . Time . | . . . . . . . . . . . . . . Total Part Build Rating . | . . . . . . . . . . . . . . Parts Repaired . | . . . . . . . . . . . . . . Time . | . . . . . . . . . . . . . . Parts Recycled . | . . . . . . . . . . . . . . Recycled Matter . | . . . . . . . . . . . . . . Retrieved Matter . | . . . . . . . . . . . . . . Retrieved Components . | . . . . . . . . . . . . . . Parts Scanalyzed . | . . . . . . . . . . . . . . Part Schematics Acquired . | . . . . . . . . . . . . . . Parts Damaged . | . . . . . . . . . . . . . . Bothacking | -11 -10 -10 -9 -9 -9 -8 -8 -8 -8 -7 -7 -7 -7 ------------ Run | Scr Mat Min Mat Min Exi Min Mat Gar Mat Fac Was Fac Gar Used RIF Installer 2 | . . . . . . . . 1 . . . . 1 Robot Detection 1 | . . . . . . . . . . . . . 1 Robots Hacked 7 | . . . . . . . . . . . . . 7 Non-combat . | . . . . . . . . . . . . . . Combat 7 | . . . . . . . . . . . . . 7 Robot Hacks Applied 9 | . . . . . . . . . . . . . 9 parse_system 1 | . . . . . . . . . . . . . 1 amplify_resonance 2 | . . . . . . . . . . . . . 2 overwrite_iff 2 | . . . . . . . . . . . . . 2 formatsys_high 4 | . . . . . . . . . . . . . 4 Relay Couplers Released 12 | . . . . . . . . 4 . . . . 8 Machine Destruction 12 | . . . . . . . . 4 . . . . 8 Attached 6 | . . . . . . . . . . . . . 6 Robots Rewired . | . . . . . . . . . . . . . . Allies Hacked . | . . . . . . . . . . . . . . Hacks Repelled . | . . . . . . . . . . . . . . Allies | -11 -10 -10 -9 -9 -9 -8 -8 -8 -8 -7 -7 -7 -7 -------- Run | Scr Mat Min Mat Min Exi Min Mat Gar Mat Fac Was Fac Gar Total Allies 26 | . . . . 1 . . . . . . 19 . 6 Largest Group 19 | . . . . 1 . . . . . . 19 17 7 Highest-Rated Group 477 | . . . . 31 . . . . . . 477 449 210 Highest-Rated Ally 35 | . . . . 31 . . . . . . 35 35 35 Total Orders . | . . . . . . . . . . . . . . Ally Attacks 253 | . . . . 15 . . . . . . 93 90 55 Total Damage 7297 | . . . . 233 . . . . . . 2953 2962 1149 Kills 46 | . . . . 4 . . . . . . 6 28 8 Allies Corrupted . | . . . . . . . . . . . . . . Allies Melted . | . . . . . . . . . . . . . . Intel | -11 -10 -10 -9 -9 -9 -8 -8 -8 -8 -7 -7 -7 -7 ------- Run | Scr Mat Min Mat Min Exi Min Mat Gar Mat Fac Was Fac Gar Robot Analysis Total . | . . . . . . . . . . . . . . Derelict Logs Recovered 3 | . . 1 . 2 . . . . . . . . . Drone Launches . | . . . . . . . . . . . . . . Drone Recoveries . | . . . . . . . . . . . . . . Exploration | -11 -10 -10 -9 -9 -9 -8 -8 -8 -8 -7 -7 -7 -7 ------------- Run | Scr Mat Min Mat Min Exi Min Mat Gar Mat Fac Was Fac Gar Turns Passed 8769 | 108 282 602 641 1037 576 130 961 791 1295 363 339 678 966 Spaces Moved 4358 | 65 127 365 326 614 262 65 410 404 564 181 180 390 405 Core 36 | 21 . 7 . . . . . . 2 . . . 6 Treads 1331 | . . . 88 . . . . . 407 181 180 390 85 Legs 1822 | 44 127 358 238 109 . . 380 404 155 . . . 7 Wheels . | . . . . . . . . . . . . . . Hover 1169 | . . . . 505 262 65 30 . . . . . 307 Flight . | . . . . . . . . . . . . . . Fastest Speed 50 | 50 120 100 120 76 146 76 146 150 150 172 160 160 160 Average Speed 152 | 100 120 120 138 145 146 138 150 151 171 172 161 160 183 Slowest Speed 800 | 120 120 150 160 180 146 146 220 210 750 185 172 160 800 Overloaded Moves . | . . . . . . . . . . . . . . Propulsion Burnouts . | . . . . . . . . . . . . . . Robots Hopped . | . . . . . . . . . . . . . . Cave-ins Triggered 1 | . . . . . . . . . . . . 1 . Exploration Rate (%) 46 | 5 29 66 29 97 69 13 43 62 66 10 91 16 53 Regions Visited 13 Branch Regions 4 Pre-discovered Areas 1 | . 1 . . . . . . . . . . . . Known Exits Taken 4 | . 1 1 . . . . 1 . . . . 1 . Unknown Exits Taken 6 | 1 . . 1 1 1 1 . . 1 . . . . Scrap Searched 4 | . . 2 . 2 . . . . . . . . . Spaces Dug 10 | . . . . . . . . . 10 . . . . Terrain Destroyed 234 | . . . . . . 44 34 9 105 . 42 . . Melee . | . . . . . . . . . . . . . . Projectile . | . . . . . . . . . . . . . . AOE 234 | . . . . . . 44 34 9 105 . 42 . . Actions | -11 -10 -10 -9 -9 -9 -8 -8 -8 -8 -7 -7 -7 -7 --------- Run | Scr Mat Min Mat Min Exi Min Mat Gar Mat Fac Was Fac Gar Total 5864 | 86 190 494 445 686 456 89 660 532 780 226 216 430 574 Wait 742 | 5 12 91 23 11 191 8 151 56 100 29 3 19 43 Move 4345 | 64 126 364 325 613 261 64 409 402 563 181 179 389 405 Hop . | . . . . . . . . . . . . . . Pick Up 76 | . . 2 21 3 1 1 10 8 9 1 4 4 12 Fast Attach 84 | 7 6 9 7 6 1 1 11 3 11 4 4 4 10 Attach 35 | . . . 3 1 . 3 9 3 4 1 1 3 7 Detach 7 | . . . 1 1 . . 4 . . . . . 1 Swap 36 | . . . 2 2 . 2 3 2 13 3 1 1 7 Drop 86 | . . 1 16 7 2 . 12 7 12 4 9 2 14 Fire 401 | 10 46 25 47 42 . 10 51 31 66 3 15 8 47 Melee . | . . . . . . . . . . . . . . Ram 1 | . . 1 . . . . . . . . . . . Kick 2 | . . 1 . . . . . . 1 . . . . Crush 1 | . . . . . . . . . 1 . . . . Escape Stasis 48 | . . . . . . . . 20 . . . . 28 Rewire . | . . . . . . . . . . . . . . Trap . | . . . . . . . . . . . . . . Miscellaneous . | . . . . . . . . . . . . . . Route ------- -11/Scrapyard -10/Materials (discovered 2 exits: *Min x2) -10/Mines -9/Materials -9/Mines (discovered 3 exits: *Mat x2 / *Exi) -9/Exiles -8/Mines -8/Materials -8/Garrison (discovered 3 exits: *Mat x3) -8/Materials (discovered 2 exits: *Fac x2) -7/Factory -7/Waste -7/Factory -7/Garrison (discovered 1 exit: [*Fac]) History --------- Turn | Location | Event 3 | -11/Scrapyard | Discovered new exit (range 15) 109 | -11/Scrapyard | Entered Materials 135 | -10/Materials | Identified exit to Mines 250 | -10/Materials | Lost 3 parts (1p1u1w) 313 | -10/Materials | Lost 4 parts (1p1n2w) 391 | -10/Materials | Entered Mines 407 | -10/Mines | Lost 3 parts (1n2w) 469 | -10/Mines | Core integrity fell below 50% 623 | -10/Mines | Identified exit to Materials 669 | -10/Mines | Build established: Mutant 776 | -10/Mines | Core integrity fell below 20% 993 | -10/Mines | Entered Materials 993 | -9/Materials | Evolved 2 slots: Utility x2 1187 | -9/Materials | Build established: Scavenger-Mutant 1442 | -9/Materials | Discovered new exit (range 11) 1493 | -9/Materials | Build established: Mutant 1634 | -9/Materials | Entered Mines 1657 | -9/Mines | Assembled infested the area 1702 | -9/Mines | Received a Mining Laser from a helpful Derelict 2141 | -9/Mines | Build established: Scavenger-Mutant 2172 | -9/Mines | Learned Materials stockpile data 2173 | -9/Mines | Discovered new exit (range 7) 2177 | -9/Mines | A weapon hastily lodged in a ceiling crevice suddenly fell to the ground 2507 | -9/Mines | Learned Materials garrison access intel 2545 | -9/Mines | Discovered new exit (range 6) 2665 | -9/Mines | Deemed a non-threat by the Exiles lab entrance 2665 | -9/Mines | Discovered new exit (range 5) 2671 | -9/Mines | Entered Exiles 2705 | -9/Exiles | Met 8R-AWN 2733 | -9/Exiles | Met EX-HEX 2810 | -9/Exiles | Met EX-DEC 2844 | -9/Exiles | Met EX-BIN 2864 | -9/Exiles | Aligned with FarCom system 2866 | -9/Exiles | Given EX-Vault access code 2901 | -9/Exiles | Opened EX-Vault 2909 | -9/Exiles | Found Superbattery 3104 | -9/Exiles | Found Modified TNC 3138 | -9/Exiles | Warned to stay clear of 0b10 Research branches 3235 | -9/Exiles | Discovered new exit (range 10) 3247 | -9/Exiles | Stole two prototypes: Superbattery, Modified TNC 3247 | -9/Exiles | Entered Mines 3267 | -8/Mines | Core integrity fell below 50% 3302 | -8/Mines | Lost 4 parts (1p1u2w) 3328 | -8/Mines | Discovered new exit (range 10) 3377 | -8/Mines | Entered Materials 3377 | -8/Materials | Evolved 2 slots: Utility x2 3379 | -8/Materials | Loaded intel: 1 garrison access location 3744 | -8/Materials | Build established: Mutant 4085 | -8/Materials | Build established: Skirmisher 4337 | -8/Materials | Identified exit to Garrison 4338 | -8/Materials | Entered Garrison 4432 | -8/Garrison | Triggered checkpoint 4455 | -8/Garrison | Garrison Relay disabled 4524 | -8/Garrison | Spotted B-75 Beast 4560 | -8/Garrison | Triggered checkpoint 4716 | -8/Garrison | Discovered new exit (range 12) 4790 | -8/Garrison | Triggered checkpoint 4810 | -8/Garrison | Triggered checkpoint 4860 | -8/Garrison | Triggered checkpoint 4860 | -8/Garrison | Discovered new exit (range 17) 5096 | -8/Garrison | Discovered new exit (range 11) 5120 | -8/Garrison | Installed Relay Interface Framework 5129 | -8/Garrison | Entered Materials 5329 | -8/Materials | Core integrity fell below 50% 5510 | -8/Materials | Lost 3 parts (1n1u1w) 5562 | -8/Materials | Discovered new exit (range 16) 6220 | -8/Materials | Core integrity fell below 20% 6329 | -8/Materials | First assault squad dispatched 6353 | -8/Materials | Discovered new exit (range 19) 6424 | -8/Materials | Entered Factory 6424 | -7/Factory | Evolved 2 slots: Utility x2 6426 | -7/Factory | FarCom data flow suspended 6787 | -7/Factory | Sucked down chute 6787 | -7/Factory | Entered Waste 6788 | -7/Waste | Met a frightened Derelict 6796 | -7/Waste | Spotted C-40 Crusher 6806 | -7/Waste | Spotted C-40 Crusher 6813 | -7/Waste | Allies destroyed C-40 Crusher 6820 | -7/Waste | Spotted C-40 Crusher 6826 | -7/Waste | Destroyed C-40 Crusher 6834 | -7/Waste | Destroyed C-40 Crusher 6872 | -7/Waste | Warlord forces began an assault 6972 | -7/Waste | Spotted C-40 Crusher 6972 | -7/Waste | Spotted C-40 Crusher 6983 | -7/Waste | Allies destroyed C-40 Crusher 6985 | -7/Waste | Allies destroyed C-40 Crusher 7015 | -7/Waste | Spotted C-40 Crusher 7024 | -7/Waste | Allies destroyed C-40 Crusher 7041 | -7/Waste | Discovered new exit (range 20) 7099 | -7/Waste | Build established: Mutant 7120 | -7/Waste | Identified exit to Factory 7126 | -7/Waste | Entered Factory 7126 | -7/Factory | Accompanied by 17 allies 7329 | -7/Factory | Crushed by falling debris 7360 | -7/Factory | Lost 4 parts (3u1w) 7768 | -7/Factory | Garrison activated, responded to threat 7803 | -7/Factory | Identified exit to Garrison 7804 | -7/Factory | Entered Garrison 7804 | -7/Garrison | Accompanied by 7 allies 7812 | -7/Garrison | Expanded RIF knowledge: Robot Detection 7842 | -7/Garrison | Triggered checkpoint 7881 | -7/Garrison | Garrison Relay disabled 7963 | -7/Garrison | Triggered checkpoint 7972 | -7/Garrison | Triggered checkpoint 8051 | -7/Garrison | Lost 7 parts (2p1n4u) 8177 | -7/Garrison | Build established: Bothacker-Mutant 8324 | -7/Garrison | Triggered checkpoint 8403 | -7/Garrison | Garrison Relay disabled 8538 | -7/Garrison | Triggered checkpoint 8560 | -7/Garrison | Triggered checkpoint 8596 | -7/Garrison | Triggered checkpoint 8741 | -7/Garrison | Discovered new exit (range 14) 8757 | -7/Garrison | Core integrity fell below 50% 8764 | -7/Garrison | Core integrity fell below 20% 8770 | -7/Garrison | Destroyed by L-41 Fighter with Axe Last Messages --------------- 08646_ Acquired Unknown Storage. 08646_ Identified Hcp. Matter Pod. 08647_ Dropped Hcp. Matter Pod. 08650_ Acquired Imp. Cooling System. 08660_ Acquired 10 matter. 08666_ System corrupted: Heat flow error (+235). 08701_ FZ MHF 4PO AS A VNJ/AP2GSLWE%EOV 08721_ C,QO>W8&N